Cogmind - Beta 14 @@@ ROGUE MODE // 2025.03.16 @ 12:55:23 Player: Lexipup Result: Destroyed by D-53 Grenadier with Mini Grenade Launcher Performance ------------- Evolutions (1) 500 Regions Visited (3) 600 Robots Destroyed (22) 110 Value Destroyed (624) 624 Prototype IDs (3) 60 Alien Tech Used (0) 0 Bonus (0) 0 TOTAL SCORE: 1894 Bonus ------- None Cogmind --------- Core Integrity 0/400 Matter 229/300 Energy 100/100 System Corruption 1% Temperature Cool (0) Movement Treading (160) Location -9/Mines Parts ------- > --- POWER (2) -------- (None) > --- PROPULSION (2) --- Light Treads Light Treads > --- UTILITY (3) ------ Large Storage Unit Light Armor Plating > --- WEAPON (2) ------- Light Cannon Light Cannon > --- INVENTORY (15) --- Improved Ion Engine Heat Sink Large Matter Pod (31) Particle Gun Advanced Beam Cannon Heavy Assault Rifle Improved Assault Rifle Improved Assault Rifle Peak State ------------ > --- POWER ------------ Ion Engine Improved Ion Engine > --- PROPULSION ------- Light Treads Light Treads > --- UTILITY ---------- Large Storage Unit Improved Targeting Computer Light Armor Plating > --- WEAPON ----------- Advanced Beam Cannon Improved Assault Rifle > --- INVENTORY -------- Heat Sink Large Matter Pod Particle Gun Heavy Assault Rifle Improved Assault Rifle Light Cannon Light Cannon [Rating: 16] Favorites ----------- Power Light Ion Engine Engine Light Ion Engine Propulsion Light Treads Treads Light Treads Leg Aluminum Leg Flight Unit Flight Unit Utility Improved Targeting Computer Storage Large Storage Unit Processor Improved Targeting Computer Protection Light Armor Plating Weapon Light Assault Rifle Energy Gun Particle Gun Energy Cannon Light EM Pulse Cannon Ballistic Gun Light Assault Rifle Ballistic Cannon Light Cannon Build | -11 -10 -9 -9 ------- Run | Yrd Mat Mat Min Slots Evolved 2 | . . 2 . Power 1 | . . 1 . Propulsion . | . . . . Utility 1 | . . 1 . Weapon . | . . . . Parts Attached 33 | 3 7 23 . Power 6 | 1 . 5 . Engine 6 | 1 . 5 . Core . | . . . . Reactor . | . . . . Propulsion 10 | . 6 4 . Treads 3 | . . 3 . Leg 1 | . 1 . . Wheel . | . . . . Hover . | . . . . Flight 6 | . 5 1 . Utility 6 | . 1 5 . Device . | . . . . Storage 2 | . . 2 . Processor 2 | . . 2 . Hackware . | . . . . Protection 2 | . 1 1 . Artifact . | . . . . Weapon 11 | 2 . 9 . Energy Gun 1 | . . 1 . Energy Cannon 2 | . . 2 . Ballistic Gun 4 | 2 . 2 . Ballistic Cannon 4 | . . 4 . Launcher . | . . . . Special Weapon . | . . . . Impact Weapon . | . . . . Slashing Weapon . | . . . . Piercing Weapon . | . . . . Special Melee Weapon . | . . . . Unidentified Prototypes 3 | . . 3 . Parts Lost 9 | . 2 4 3 Power 4 | . 1 1 2 Propulsion 4 | . 1 3 . Utility 1 | . . . 1 Weapon . | . . . . Highest Loss Streak 3 | . 2 3 1 To Critical Strikes . | . . . . Average Slot Usage (%) 63 | . 57 61 91 Engine 12 | . 12 10 18 Treads 8 | . . 10 22 Flight 6 | . 14 4 . Storage 3 | . . 3 11 Processor 5 | . . 7 5 Protection 6 | . 2 7 11 Ballistic Gun 12 | . 28 7 . Ballistic Cannon 7 | . . 7 22 Peak Build Rating 16 | 3 6 16 11 Average Rating 6 | 2 4 7 9 On Entrance 4 | . 3 4 11 Naked Turns . | . . . . Heaviest Build 41 | 5 6 41 37 Greatest Support 40 | 3 8 40 40 Greatest Overweight (x) 4 | 1 1 4 . Average Overweight (x) . | . . . . Largest Inventory Capacity 15 | 5 5 15 15 Average Capacity 7 | 5 5 8 15 Most Carried 8 | 2 5 8 8 Average Carried 3 | . 1 4 8 Final Capacity 15 | 5 5 15 15 Final Carried 8 | 1 1 8 8 Class Distribution -------------------- 93% | Mutant 6% | Scavenger-Mutant Dominant Class ---------------- Mutant | -10/Materials Mutant | -9/Materials Mutant | -9/Mines Resources | -11 -10 -9 -9 ----------- Run | Yrd Mat Mat Min Matter Collected 779 | 236 112 339 92 Remotely . | . . . . Salvage Created 787 | 33 179 509 66 Parts 49 | 1 11 35 2 Haulers Intercepted 1 | . . 1 . Recyclers Shooed . | . . . . Parts Field Recycled . | . . . . Retrieved Matter . | . . . . Parts Self-Destructed . | . . . . Prevented . | . . . . Kills | -11 -10 -9 -9 ------- Run | Yrd Mat Mat Min Combat Hostiles Destroyed 21 | 1 7 10 3 Guns 15 | 1 7 7 . Cannons 6 | . . 3 3 Classes Destroyed 7 | 1 2 2 2 Hauler 1 | . . 1 . Watcher 1 | . 1 . . Swarmer 6 | . 6 . . Grunt 8 | 1 1 5 1 Brawler 1 | . . . 1 Sentry 5 | . . 5 . Assembled 1 | . . . 1 Best Kill Streak 7 | 1 7 2 2 Combat Bots Only 6 | 1 6 2 2 Max Kills in Single Turn 1 | 1 1 1 1 Gunslinging . | . . . . Exploded . | . . . . Melee . | . . . . Uniques/NPCs Destroyed . | . . . . Combat | -11 -10 -9 -9 -------- Run | Yrd Mat Mat Min Hostile Shots Fired 146 | 3 43 63 37 Missed 51 | . 20 20 11 Damage Taken 1421 | 34 236 586 565 Core 494 | 24 48 217 205 Absorbed by Shields . | . . . . Redirected to Shielding 23 | . 12 11 . Core Remaining (%) 80 | 90 71 . . Volleys Fired 94 | 3 25 50 16 Largest 2 | 2 2 2 2 Hottest 70 | 40 40 70 70 Shots Fired 154 | 6 50 66 32 Gun 112 | 6 50 56 . Cannon 42 | . . 10 32 Launcher . | . . . . Special . | . . . . Kinetic 154 | 6 50 66 32 Thermal . | . . . . Explosive . | . . . . Electromagnetic . | . . . . Robot Hit Streak 13 | 4 9 13 3 Robot Miss Streak 5 | 1 4 2 5 Penetration Max . | . . . . Secondary Targets . | . . . . Shots Hit Robots 94 | 5 30 47 12 Core Hits 40 | 3 14 19 4 Critical Kills . | . . . . Critical Parts Destroyed . | . . . . Critical Strikes . | . . . . Melee Attacks . | . . . . Impact . | . . . . Slashing . | . . . . Piercing . | . . . . Sneak Attacks . | . . . . Combat Hostiles . | . . . . Follow-up Attacks . | . . . . Damage Inflicted 1033 | 38 178 600 217 Guns 693 | 38 178 477 . Cannons 340 | . . 123 217 Explosions . | . . . . Melee . | . . . . Ramming . | . . . . Kinetic 1033 | 38 178 600 217 Thermal . | . . . . Explosive . | . . . . Electromagnetic . | . . . . Impact . | . . . . Slashing . | . . . . Piercing . | . . . . Highest Corruption 1 | . . . 1 Average Corruption 1 | . . . 1 Corruption Purged . | . . . . Corruption Blocked . | . . . . Overload Shots . | . . . . Overflow Damage 15 | . . 15 . Projectiles 15 | . . 15 . Explosions . | . . . . Melee . | . . . . Knockbacks 3 | . . . 3 Impact . | . . . . Kinetic 3 | . . . 3 Secondary . | . . . . Self-Inflicted Damage . | . . . . Shots . | . . . . Rammed . | . . . . Targets Rammed . | . . . . Kicked . | . . . . Crushed . | . . . . Highest Temperature 168 | 12 14 36 168 Average Temperature 28 | 7 5 12 53 Received Heat Transfer 348 | 18 69 225 36 Siege Activations . | . . . . Robots Corrupted . | . . . . Combat Hostiles . | . . . . Parts Fried . | . . . . Impact Corruptions . | . . . . Robots Melted . | . . . . Combat Hostiles . | . . . . Parts Melted . | . . . . Heat Transferred . | . . . . Parts Sabotaged . | . . . . Parts Stolen . | . . . . Parts Stripped . | . . . . Power Chain Reactions . | . . . . Alert | -11 -10 -9 -9 ------- Run | Yrd Mat Mat Min Peak Influence 275 | 20 275 242 84 Initial 37 | . 13 37 24 Average 115 | 6 69 162 30 Maximum Alert Level 1 | . 1 1 . Low Security (%) 70 | 100 83 57 100 Level 1 29 | . 16 42 . Level 2 . | . . . . Level 3 . | . . . . Level 4 . | . . . . Level 5 . | . . . . High Security . | . . . . Max Security . | . . . . Squads Dispatched 1 | . . 1 . Investigation . | . . . . Extermination . | . . . . Reinforcement 1 | . . 1 . Assault . | . . . . Garrison . | . . . . Intercept . | . . . . Searches Triggered . | . . . . Construction Impeded . | . . . . Haulers Reinforced . | . . . . Active Scanning Responses . | . . . . Cargo Convoy Interrupts . | . . . . Stealth | -11 -10 -9 -9 --------- Run | Yrd Mat Mat Min Distress Signals . | . . . . Communications Jammed . | . . . . Distress Signals . | . . . . Times Spotted 39 | 1 15 12 11 Peak Tracking Total 8 | 1 7 2 8 Tactical Retreats 5 | . 3 1 1 Traps | -11 -10 -9 -9 ------- Run | Yrd Mat Mat Min Traps Triggered . | . . . . Indirectly . | . . . . Trap Hack Attempts . | . . . . Triggered . | . . . . Disarmed . | . . . . Reprogrammed . | . . . . Reused . | . . . . Traps Extracted . | . . . . Installed . | . . . . Triggered 1 | . . . 1 Machines | -11 -10 -9 -9 ---------- Run | Yrd Mat Mat Min Machines Disabled . | . . . . Max in Single Turn . | . . . . Machines Repaired . | . . . . Machines Dismantled . | . . . . Machines Sabotaged . | . . . . Overloaded Fab Kills . | . . . . Hacking | -11 -10 -9 -9 --------- Run | Yrd Mat Mat Min Machines Accessed 1 | . 1 . . Terminals 1 | . 1 . . Fabricators . | . . . . Repair Stations . | . . . . Recycling Units . | . . . . Scanalyzers . | . . . . Garrison Access . | . . . . Total Hacks 1 | . 1 . . Successful 1 | . 1 . . Failed . | . . . . Catastrophic . | . . . . Database Lockouts . | . . . . Manual . | . . . . Terminals 1 | . 1 . . Fabricators . | . . . . Repair Stations . | . . . . Recycling Units . | . . . . Scanalyzers . | . . . . Garrison Access . | . . . . Terminal Hacks 1 | . 1 . . Record 1 | . 1 . . Fabricator Hacks . | . . . . Repair Station Hacks . | . . . . Recycling Unit Hacks . | . . . . Scanalyzer . | . . . . Garrison Access Hacks . | . . . . Unauthorized Hacks . | . . . . Terminals . | . . . . Fabricators . | . . . . Repair Stations . | . . . . Recycling Units . | . . . . Scanalyzers . | . . . . Garrison Access . | . . . . Data Cores Recovered . | . . . . Used . | . . . . Hacking Detections . | . . . . Full Trace Events . | . . . . Feedback Events . | . . . . Feedback Blocked . | . . . . Robot Schematics Acquired . | . . . . Robots Built . | . . . . Authchips . | . . . . Time . | . . . . Total Robot Build Rating . | . . . . Part Schematics Acquired . | . . . . Parts Built . | . . . . Authchips . | . . . . Time . | . . . . Total Part Build Rating . | . . . . Parts Repaired . | . . . . Time . | . . . . Parts Recycled . | . . . . Recycled Matter . | . . . . Retrieved Matter . | . . . . Retrieved Components . | . . . . Parts Scanalyzed . | . . . . Part Schematics Acquired . | . . . . Parts Damaged . | . . . . Bothacking | -11 -10 -9 -9 ------------ Run | Yrd Mat Mat Min Used RIF Installer . | . . . . Robots Hacked . | . . . . Non-combat . | . . . . Combat . | . . . . Robot Hacks Applied . | . . . . Relay Couplers Released . | . . . . Fabnet Peak Effective % . | . . . . Robots Rewired . | . . . . Allies Hacked . | . . . . Hacks Repelled . | . . . . Allies | -11 -10 -9 -9 -------- Run | Yrd Mat Mat Min Total Allies . | . . . . Largest Group . | . . . . Highest-Rated Group . | . . . . Highest-Rated Ally . | . . . . Total Orders . | . . . . Ally Attacks . | . . . . Total Damage . | . . . . Kills . | . . . . Allies Corrupted . | . . . . Allies Melted . | . . . . Intel | -11 -10 -9 -9 ------- Run | Yrd Mat Mat Min Robot Analysis Total . | . . . . Derelict Logs Recovered . | . . . . Drone Launches . | . . . . Drone Recoveries . | . . . . Exploration | -11 -10 -9 -9 ------------- Run | Yrd Mat Mat Min Turns Passed 1544 | 71 432 875 166 Spaces Moved 1264 | 76 511 602 75 Core 376 | 76 230 70 . Treads 325 | . . 250 75 Legs . | . . . . Wheels . | . . . . Hover . | . . . . Flight 563 | . 281 282 . Fastest Speed 34 | 50 37 34 160 Average Speed 95 | 74 65 116 160 Slowest Speed 250 | 100 120 250 160 Overloaded Moves . | . . . . Propulsion Burnouts . | . . . . Robots Hopped . | . . . . Cave-ins Triggered . | . . . . Exploration Rate (%) 35 | 7 69 43 21 Regions Visited 3 Branch Regions 1 Pre-discovered Areas . | . . . . Known Exits Taken . | . . . . Unknown Exits Taken 3 | 1 1 1 . Scrap Searched 1 | . . . 1 Spaces Dug . | . . . . Terrain Destroyed . | . . . . Melee . | . . . . Projectile . | . . . . AOE . | . . . . Terrain Rammed . | . . . . Walls Destroyed . | . . . . Machines Disabled . | . . . . Actions | -11 -10 -9 -9 --------- Run | Yrd Mat Mat Min Total 1472 | 85 572 724 91 Wait . | . . . . Move 1261 | 75 510 601 75 Hop . | . . . . Pick Up 52 | 4 15 33 . Fast Attach . | . . . . Attach 26 | 3 7 16 . Detach 3 | . 3 . . Swap 7 | . . 7 . Drop 29 | . 12 17 . Fire 94 | 3 25 50 16 Melee . | . . . . Ram . | . . . . Kick . | . . . . Crush . | . . . . Escape Stasis . | . . . . Rewire . | . . . . Trap . | . . . . Miscellaneous . | . . . . Route ------- -11/Scrapyard -10/Materials -9/Materials -9/Mines History --------- Turn | Location | Event 2 | -11/Scrapyard | Met Revision 17 41 | -11/Scrapyard | Discovered new exit (range 8) 72 | -11/Scrapyard | Entered Materials 303 | -10/Materials | Build established: Mutant 486 | -10/Materials | Discovered new exit (range 4) 504 | -10/Materials | Entered another Materials area 504 | -9/Materials | Evolved 2 slots: Power x1, Utility x1 772 | -9/Materials | Lost 3 parts (1p2n) 936 | -9/Materials | Core integrity fell below 50% 1294 | -9/Materials | Discovered new exit (range 12) 1379 | -9/Materials | Entered Mines 1411 | -9/Mines | Assembled infested the area 1540 | -9/Mines | Core integrity fell below 20% 1545 | -9/Mines | Destroyed by D-53 Grenadier with Mini Grenade Launcher Last Messages --------------- 01503_ Ion Engine destroyed. 01504_ K-01 Serf collects debris. 01506_ S-10 Pest destroyed. 01507_ K-01 Serf collects debris. 01509_ The unstable cave ceiling collapses. 01509_ 4 Matter crushed. 01513_ The unstable cave ceiling collapses. 01513_ K-01 Serf collects debris. 01515_ The unstable cave ceiling collapses. 01516_ K-01 Serf collects debris. 01518_ The unstable cave ceiling collapses. 01520_ K-01 Serf collects debris. 01534_ B-36 Bruiser destroyed. 01535_ The unstable cave ceiling collapses. 01536_ K-01 Serf collects debris. 01537_ Lgt. Ion Engine destroyed. 01540_ G-34 Mercenary destroyed. 01541_ K-01 Serf collects debris. 01545_ The unstable cave ceiling collapses. [Achievement: First Step to Greatness] Map ----- +----------------------------------------------------+ | ??????????????????????# #?????? | | ??????????????????????## #?????? | | ??????????????????????## #?????? | | ??????????????????????# ##?????? | | ??????????????????????## ##??????? | | ???????????????????????## #???????? | | ????????????????????????# #???????? | | ????????????????????????# #???????? | | ???????????????????###### ######??? | | ???????????????????# #??? | | ???????????????????# """ """ #??? | | ???????????????????# """ """ #??? | | ???????????????????# """ """ #??? | | ???????????????????# #??? | | ???????????????????# """ """ #??? | | ??????????#????????# """ """ #??? | | ?????????## ???????# """ """ #??? | | ????????## "???????# #??? | | ????????# ??????# """ """ #??? | | ??????### ??????# """ """ #??? | | ?????? ##???# """ """ #??? | | ???????? # ???# #??? | | ?????????# ??## # # #####??? | | ?????????# # ???# # ##?????? | | ??????????# ##### #?????? | | ?????????## [ !%d % @ #?????? | | ?????????# # = =d ##?????? | | ??????????# #% # #%% #??????? | | ??????????# = = # ### # #??????? | | ??????????#%=% [ ?????? | | ??????????# % #????? | | ??????????# *%[# #????? | | ??????????##[%###### """ """ #????? | | ???????????# ?????# """ """ #????? | | ??????????#""??????# """ """ ?#????? | | ??????????# ??????# ?????? | | ??????????#% ??????# ? ?????? | | ??????????#= ??????######? ????????? | | ?????????? ???????????????????????? | | ?????????? ???????????????????????? | | ????????? ???????????????????????? | | ????????? ???????????????????????? | | ?????????? ????????????????????????? | | ???????????????????????????????????? | | ???????????????????????????????????? | | ???????????????????????????????????? | | ???????????????????????????????????? | | ???????????????????????????????????? | | ???????????????????????????????????? | | | +----------------------------------------------------+ Best States ------------- Heat Dissipation 28 Energy Generation 17 Energy Capacity 415 Matter Stores 300 Matter Capacity 300 Sight Range 16 Terrain Scan Density 10 Armor Coverage 150 Weapon Shielding 33 Evasion (%) 63 Targeting Accuracy 6 Recoil Reduction 2 Item Schematics ----------------- None Robot Schematics ------------------ None Fabricated ------------ Nothing Alien Tech Used ----------------- None Achievements -------------- Crack Shot First Step to Greatness Loot Pinata Risk Taker Storm Trooper Challenges ------------ None Game ------ Seed CargoServoFlamer Manual? 0 Play Time 00:20:55 Cumulative 0.5 hours Start 2025.03.16 @ 12:35:44 End 2025.03.16 @ 12:55:23 Sessions 1 Manual Loads 0 Difficulty Rogue Special Mode None Game No. 2 Rogue 2 Adventurer 0 Explorer 0 Win Type - Total 0 Types 0/0/0/0/0/0/0/0/0 Lore% 0 Gallery% 2 Achievement% 2 Wizard Run 0 Options --------- Layout 1 ASCII 0 Keyboard 0 Movement Arrows Keybinds 0 Fullscreen 1 Font 24/Smallcaps Map View 50x35 Zoom Use 0% Tactical HUD 1 Map Filters NONE Filters NONE Steam 1 RUN: d6de59cc-d5f1-40fc-9305-655dcee55aff